bitfinex/quotes_ETHUSD_20250815
["timestamp","ask_amount","ask_price","bid_price","bid_amount"]
[1755269360068,2.21385937,4517.0,4515.9,2.21435437]
[1755269360268,0.4437,4517.4,4515.2,0.4572]
[1755269360469,2.21376073,4517.2,4515.5,2.2145502]
[1755269360669,0.4437,4517.1,4515.1,3.523]
[1755269360979,0.4366,4517.6,4515.4,0.4572]
[1755269361178,0.4366,4517.6,4515.5,3.54514594]
[1755269361357,2.65016558,4517.6,4516.7,2.21400087]
[1755269361558,2.6501777,4517.6,4514.3,0.10933851]
[1755269361758,2.21403382,4516.7,4514.7,0.523]
[1755269361959,0.22140338,4516.6,4514.7,0.523]
[1755269362154,0.4437,4516.9,4514.7,0.523]
[1755269362155,2.2141497,4516.5,4514.7,0.523]
[1755269362407,0.4437,4516.9,4514.7,0.523]
[1755269362610,2.21405904,4516.6,4514.7,0.523]
[1755269362904,0.4437,4516.5,4514.8,2.21493753]
[1755269363111,0.1104,4515.6,4515.2,2.21473101]
[1755269363421,0.1104,4516.2,4515.5,0.1104]
[1755269363571,0.1104,4515.8,4515.2,0.1104]
[1755269363774,5.7627,4517.9,4515.3,1.00234692]
[1755269364001,4.336,4517.4,4515.5,3.0]
[1755269364180,4.4464,4517.4,4516.8,0.1104]
[1755269364514,0.1104,4517.1,4516.4,0.1104]
[1755269364674,2.32421225,4517.1,4516.4,0.1104]
[1755269365096,0.1104,4517.1,4516.4,0.1104]
[1755269365483,0.1104,4518.1,4517.6,2.21356472]
[1755269365689,0.1104,4518.6,4517.6,2.32396472]
[1755269365885,0.1104,4518.6,4517.6,2.84696472]
[1755269366218,0.1104,4519.3,4517.6,6.81022738]
[1755269366990,1e-08,4517.7,4517.6,6.81022738]
[1755269367192,0.1104,4519.3,4517.6,6.81022738]
[1755269367193,1e-08,4518.2,4518.1,2.21331975]
[1755269367812,1e-08,4518.2,4518.1,6.19351975]
[1755269368025,0.4437,4521.8,4518.2,3.55]
[1755269368223,0.4437,4521.8,4518.4,0.55]
[1755269368517,0.4437,4521.8,4520.8,2.21195681]
[1755269368808,0.5033,4521.7,4518.3,1.24002]
[1755269369125,0.002,4519.1,4518.9,2.21291922]
[1755269369282,0.002,4519.1,4519.0,6.19307895]
[1755269369681,0.002,4519.1,4519.0,2.21287895]
[1755269370087,0.002,4519.1,4518.7,2.21298087]
[1755269370292,0.002,4519.1,4517.5,0.9802]
[1755269370602,0.002,4519.1,4519.0,2.21287895]
[1755269371655,0.002,4519.1,4518.3,0.9802]
[1755269371926,0.002,4519.1,4519.0,2.21287895]
[1755269372288,0.4437,4521.3,4519.1,2.21282998]
[1755269372488,2.21194942,4520.9,4520.0,2.21235679]
[1755269372723,2.21186346,4521.1,4520.1,2.21231265]
[1755269372927,0.70925635,4521.0,4519.0,0.523]
[1755269373227,0.4437,4521.0,4519.2,5.21278102]
[1755269373427,2.65561606,4521.0,4520.1,2.21232913]
[1755269373655,0.5033,4521.5,4519.2,2.21278102]
[1755269373656,0.5033,4521.5,4519.3,3.4572]
[1755269373927,0.4437,4521.7,4519.7,3.0]
[1755269374225,4.312,4522.0,4519.5,0.523]
[1755269374226,0.4437,4521.6,4519.5,0.523]
[1755269374423,3.15863038,4521.6,4518.5,0.9802]
[1755269374650,0.002,4519.1,4518.5,0.9802]
[1755269374788,0.002,4519.1,4519.0,2.21287895]
[1755269375134,0.002,4519.1,4518.5,0.523]
[1755269375300,0.002,4519.1,4519.0,2.21287895]
[1755269376115,0.002,4519.1,4519.0,3.63566318]
[1755269376324,0.0012,4519.1,4519.0,2.21287895]
[1755269376502,0.0012,4519.1,4518.9,2.21292429]
[1755269376718,0.0012,4519.1,4518.4,2.21316836]
[1755269376919,0.0012,4519.1,4517.4,0.4918]
[1755269377105,0.0012,4519.1,4517.5,2.21361372]
[1755269377311,0.0012,4519.1,4517.7,3.0]
[1755269377498,0.0012,4519.1,4517.6,1.29460322]
[1755269377829,0.0012,4519.1,4519.0,2.21287895]
[1755269378032,0.0012,4519.1,4518.9,0.1104]
[1755269378194,0.0012,4519.1,4517.7,3.0]
[1755269378398,0.1104,4518.9,4518.3,0.1104]
[1755269378798,0.1104,4518.9,4517.0,0.9609]
[1755269378799,2.6791915,4518.8,4518.0,2.21336028]
[1755269378997,2.21303662,4518.7,4517.8,2.21343559]
[1755269379202,0.48932366,4518.8,4517.0,0.4918]
[1755269379425,0.4674,4519.1,4517.9,2.21337875]
[1755269379630,0.4674,4519.1,4517.0,0.4918]
[1755269379834,2.68023514,4519.1,4517.1,0.4691]
[1755269379993,2.21297488,4518.9,4517.2,2.21376073]
[1755269380199,0.26803749,4518.9,4517.0,0.4918]
[1755269380433,1.0089,4518.8,4516.6,2.2140113]
[1755269380594,1.0089,4518.8,4516.4,0.4691]
[1755269380595,0.4662,4518.7,4516.4,0.4691]
[1755269380797,0.4662,4518.7,4516.3,2.21420189]
[1755269380798,0.5427,4518.6,4516.3,2.21420189]
[1755269381033,0.4662,4518.5,4516.3,2.21420189]
[1755269381240,0.4662,4518.5,4516.4,0.75625892]
[1755269381440,2.2131728,4518.4,4516.4,0.4691]
[1755269381604,2.21326387,4518.3,4516.4,0.4691]
[1755269381807,0.46203814,4518.9,4516.5,0.4918]
[1755269382141,0.46203814,4518.8,4517.8,2.21346431]
[1755269382480,0.46203814,4518.7,4516.6,0.4691]
[1755269382612,2.21326271,4518.3,4517.4,2.21365322]
[1755269382948,2.21326271,4518.3,4516.7,3.0]
[1755269382949,0.44264133,4518.2,4517.5,2.21357231]
[1755269383239,0.46203814,4518.2,4517.3,2.21367019]
[1755269383437,0.46203814,4518.1,4516.6,3.4691]
[1755269383746,0.46382098,4518.5,4516.7,3.4691]
[1755269384047,0.57142616,4519.0,4516.9,3.0]
[1755269384214,0.58834813,4518.9,4517.0,2.21385875]
[1755269384406,0.46390999,4518.8,4517.1,3.0]
[1755269384603,0.46390999,4518.7,4517.9,2.21341773]
[1755269384834,0.46390999,4518.6,4517.1,0.4918]
[1755269385031,0.4674,4519.1,4517.9,2.21340167]
[1755269385239,0.6223076,4519.0,4517.2,3.0]
[1755269385439,0.46415498,4518.9,4518.3,2.21321924]
[1755269385644,0.46415498,4518.9,4517.7,2.21348276]
[1755269385645,0.46415498,4518.8,4518.2,2.21323576]
[1755269385938,0.46415498,4518.7,4518.2,2.21323576]
[1755269386143,0.46415498,4518.7,4517.7,2.70529897]
[1755269386144,0.0012,4519.1,4518.7,2.21301804]
[1755269386309,0.46433477,4519.0,4518.6,2.21307167]
[1755269386513,0.46433477,4518.9,4517.7,2.70531102]
[1755269386724,0.46433477,4518.8,4518.6,2.21306887]
[1755269386925,0.0012,4519.1,4517.3,3.4691]
[1755269387126,0.4662,4518.7,4517.1,2.21380974]
[1755269387322,0.46441413,4518.6,4517.9,2.21339588]
[1755269387642,0.46441413,4518.5,4517.5,2.21357467]
[1755269387942,0.46441413,4518.5,4516.4,2.21413655]
[1755269387943,2.21355244,4517.7,4516.4,2.21413655]
[1755269388118,2.21355244,4517.7,4516.7,2.21398975]
[1755269388119,0.46441413,4517.6,4516.7,2.21398975]
[1755269388319,0.46441413,4517.5,4516.7,2.21396124]
[1755269388520,0.46441413,4517.4,4516.9,2.21386385]
[1755269388743,0.46445408,4517.9,4517.3,2.21367448]
[1755269388954,0.57142616,4518.5,4517.0,0.4918]
[1755269389271,1.63278147,4519.1,4518.1,0.1104]
[1755269389272,0.46448015,4518.4,4518.1,0.1104]
[1755269389435,0.1104,4518.9,4518.3,0.1104]
[1755269389639,0.57962201,4518.8,4518.3,0.1104]
[1755269389852,0.46469939,4518.7,4517.3,3.0]
[1755269390075,0.0012,4519.1,4518.5,0.1104]
[1755269390371,0.46474692,4519.0,4518.6,0.1104]
[1755269390572,0.46474692,4518.9,4518.6,0.1104]
[1755269390774,0.0012,4519.1,4518.2,2.21327077]
[1755269390961,0.0012,4519.1,4519.0,2.21287895]
[1755269391141,0.46537199,4519.1,4519.0,2.21287895]
[1755269391545,0.0004,4519.1,4519.0,2.21287895]
[1755269391881,0.0004,4519.1,4519.0,2.70467895]
[1755269392051,0.0004,4519.1,4519.0,3.28417895]
[1755269392379,0.0004,4519.1,4519.0,0.1104]
[1755269392536,0.46554684,4519.1,4517.8,3.0]
[1755269392733,0.46514684,4519.0,4518.8,0.1104]
[1755269392939,2.21299206,4518.8,4517.6,0.4918]
[1755269393147,2.21299206,4518.8,4517.3,0.001]
[1755269393148,0.46514684,4518.7,4517.3,0.001]
[1755269393351,0.57142616,4517.9,4517.3,0.001]
[1755269393547,0.1104,4517.5,4517.3,0.001]
[1755269393749,0.46514684,4517.4,4517.3,0.001]
[1755269393977,2.67880956,4517.4,4517.3,0.001]
[1755269394186,4.81655607,4517.4,4517.3,0.001]
[1755269394474,5.02015018,4517.4,4517.3,0.001]
[1755269394876,4.24512991,4517.4,4517.3,0.001]
[1755269395843,3.70242991,4517.4,4517.3,0.001]
[1755269396786,2.67880956,4517.4,4517.3,0.001]
[1755269396980,4.26875679,4517.4,4517.3,0.001]
[1755269397147,3.68770956,4517.4,4517.3,0.001]
[1755269397494,3.79810956,4517.4,4517.3,0.001]
[1755269397677,4.57312983,4517.4,4517.3,0.001]
[1755269397895,9.91833996,4517.4,4517.3,0.001]
[1755269398059,10.30870116,4517.4,4517.3,0.001]
[1755269398254,9.14331969,4517.4,4517.3,0.001]
[1755269398487,10.30473135,4517.4,4517.3,0.001]
[1755269398894,8.59331969,4517.4,4517.3,0.001]
[1755269399052,12.79831969,4517.4,4517.3,0.001]
[1755269399893,13.959267,4517.4,4517.3,0.001]
[1755269400265,10.304267,4517.4,4517.3,0.001]
[1755269400469,14.508267,4517.4,4517.3,1e-08]
[1755269400665,14.508267,4517.4,4516.5,0.0008]
[1755269400666,2.21405481,4516.6,4516.5,0.0008]
[1755269401003,7.86500541,4516.6,4516.5,0.0008]
[1755269401310,2.21427652,4516.2,4515.9,1e-08]
[1755269401602,2.76434898,4516.0,4515.9,1e-08]
[1755269401750,7.22949582,4516.0,4515.9,1e-08]
[1755269402100,13.27463916,4516.0,4515.9,1e-08]
[1755269402302,7.84067317,4516.0,4515.9,1e-08]
[1755269402465,10.87249582,4516.0,4515.9,1e-08]
[1755269402671,4.46514684,4516.0,4515.9,1e-08]
[1755269402865,10.40534898,4516.0,4515.9,1e-08]
[1755269403069,10.87049582,4516.0,4515.9,1e-08]
[1755269403393,7.68839582,4516.0,4515.9,1e-08]
[1755269403610,11.91570235,4516.0,4515.9,1e-08]
[1755269403817,10.40234898,4516.0,4515.9,1e-08]
[1755269403973,4.0,4516.0,4515.9,1e-08]
[1755269404174,4.187,4516.0,4515.9,1e-08]
[1755269404872,4.184,4516.0,4515.9,1e-08]
[1755269405676,6.39834898,4516.0,4515.9,1e-08]
[1755269405891,8.81851057,4516.0,4515.9,1e-08]
[1755269406075,14.59437472,4516.0,4515.9,1e-08]
[1755269406475,14.59437472,4516.0,4515.0,1e-08]
[1755269406476,2.76479037,4515.1,4515.0,1e-08]
[1755269406885,7.88409037,4515.1,4515.0,1e-08]
[1755269407085,9.40312163,4515.1,4515.0,1e-08]
[1755269407291,5.22112163,4515.1,4515.0,1e-08]
[1755269407555,8.93925748,4515.1,4515.0,1e-08]
[1755269407712,4.75825748,4515.1,4515.0,1e-08]
[1755269407862,6.39279037,4515.1,4515.0,1e-08]
[1755269408561,2.21479037,4515.1,4515.0,1e-08]
[1755269408764,6.39179037,4515.1,4515.0,1e-08]
[1755269408986,6.84279037,4515.1,4515.0,1e-08]
[1755269409195,7.87909037,4515.1,4515.0,1e-08]
[1755269409500,4.71147107,4515.1,4515.0,1e-08]
[1755269409687,8.88047107,4515.1,4515.0,1e-08]
[1755269410196,15.88047107,4515.1,4515.0,1e-08]
[1755269410365,11.71147107,4515.1,4515.0,1e-08]
[1755269410566,15.98687107,4515.1,4515.0,1e-08]
[1755269410803,15.98487107,4515.1,4515.0,1e-08]
[1755269410999,11.82187107,4515.1,4515.0,1e-08]
[1755269411207,15.98287107,4515.1,4515.0,1e-08]
[1755269411382,11.71147107,4515.1,4515.0,1e-08]
[1755269411582,15.98087107,4515.1,4515.0,1e-08]
[1755269411785,15.98187107,4515.1,4515.0,1e-08]
[1755269412663,15.98187107,4515.1,4512.8,0.001]
[1755269412664,2.21582096,4513.0,4512.8,0.001]
[1755269412868,6.48227006,4512.9,4512.8,0.001]
[1755269413101,2.32627006,4512.9,4512.8,0.001]
[1755269413490,6.47927006,4512.9,4512.8,0.001]
[1755269414302,6.47627006,4512.9,4512.8,0.004]
[1755269414604,3.74547681,4512.9,4512.8,0.004]
[1755269414902,7.89547681,4512.9,4512.8,0.004]
[1755269415308,3.19547681,4512.9,4512.8,0.004]
[1755269415508,6.47227006,4512.9,4512.8,0.004]
[1755269415902,2.32627006,4512.9,4512.8,0.004]
[1755269416075,4.2544,4512.9,4512.8,0.004]
[1755269416279,4.2544,4512.9,4512.8,0.5252]
[1755269416915,4.2544,4512.9,4512.8,0.004]
[1755269417314,4.2544,4512.9,4512.8,0.9833]
[1755269417478,4.144,4512.9,4512.8,0.9833]
[1755269417681,4.144,4512.9,4512.8,3.51915043]
[1755269417917,0.1104,4513.4,4513.2,2.21571965]
[1755269418130,4.134,4513.3,4512.9,0.9793]
[1755269418303,4.132,4513.4,4513.0,0.9793]
[1755269418482,4.1312,4513.4,4513.1,1.0897]
[1755269418683,4.1312,4513.4,4513.1,0.1104]
[1755269418915,4.1312,4513.4,4513.2,0.9793]
[1755269419085,4.1312,4513.4,4513.1,0.1104]
[1755269419286,4.1312,4513.4,4513.3,0.9793]
[1755269419998,4.0,4514.7,4513.3,0.9793]
[1755269420210,4.0,4514.7,4513.1,0.1104]
[1755269420211,0.1104,4514.2,4513.9,2.21534967]
[1755269420394,0.1104,4514.2,4514.1,2.215281]
[1755269420594,0.1104,4514.2,4514.1,0.9793]
[1755269421024,0.1104,4514.2,4512.1,0.665475]
[1755269421025,0.1104,4514.2,4512.7,3.0]
[1755269421187,2.32627006,4512.9,4512.8,0.003]
[1755269421387,2.32627006,4512.9,4511.8,0.4591]
[1755269421388,2.21611559,4512.4,4511.8,0.001]
[1755269421588,6.45631559,4512.4,4511.8,0.001]
[1755269421824,7.39361559,4512.4,4512.3,1e-08]
[1755269422031,8.9045815,4512.4,4512.3,1e-08]
[1755269422188,8.9045815,4512.4,4511.8,0.001]
[1755269422189,2.21655768,4511.5,4511.4,1e-08]
[1755269422386,13.89255768,4511.5,4511.4,1e-08]
[1755269422639,15.60174384,4511.5,4511.4,1e-08]
[1755269422840,15.60174384,4511.5,4509.0,0.11554474]
[1755269422841,2.21773746,4509.1,4509.0,1e-08]
[1755269423017,4.123,4509.1,4509.0,1e-08]
[1755269423233,4.123,4509.1,4509.0,0.52120001]
[1755269423539,4.123,4509.1,4509.0,0.97930001]
[1755269423850,4.122,4509.1,4509.0,0.97930001]
[1755269424417,1.06238037,4511.0,4509.0,0.97930001]
[1755269424670,4.42111213,4511.4,4509.0,0.97930001]
[1755269424671,0.1112,4509.9,4509.1,3.19703746]
[1755269424816,0.1112,4509.9,4509.6,2.2174899]
[1755269425016,5.32,4510.7,4509.3,0.1112]
[1755269425017,0.1112,4510.1,4509.3,0.1112]
[1755269425323,0.1112,4510.3,4509.6,0.1112]
[1755269425654,0.1112,4510.5,4509.9,0.1112]
[1755269425849,4.0,4511.5,4510.6,2.21699715]
[1755269426056,4.113,4511.4,4510.6,0.4581]
[1755269426217,0.1112,4511.7,4511.0,0.1112]
[1755269426418,0.1112,4511.7,4511.4,2.21657244]
[1755269426617,0.1112,4511.7,4511.5,3.19583089]
[1755269426842,4.111,4512.1,4511.6,0.5212]
[1755269427055,4.111,4512.1,4511.5,0.4581]
[1755269427056,3.0,4511.9,4510.3,0.5212]
[1755269427355,0.55,4511.5,4511.3,0.001]
[1755269427557,0.55,4511.3,4508.9,0.9793]
[1755269427767,2.32849335,4510.1,4509.4,0.1112]
[1755269427976,4.108,4510.0,4508.9,0.9793]
[1755269428148,2.21765486,4509.3,4509.1,0.1112]
[1755269428342,4.107,4509.2,4508.8,0.1112]
[1755269428543,2.21734458,4509.9,4509.1,0.9793]
[1755269428746,0.1112,4509.7,4509.1,0.95210848]
[1755269428932,0.1112,4509.7,4509.1,0.1112]
[1755269429138,2.21736038,4509.9,4509.1,0.1112]
[1755269429139,4.104,4509.6,4509.3,2.21759565]
[1755269429338,0.1112,4509.9,4509.4,0.5212]
[1755269429560,4.1,4509.8,4509.1,0.1112]
[1755269429746,4.1,4509.8,4509.1,2.32892232]
[1755269429951,4.1,4509.8,4509.1,2.32893383]
[1755269430149,0.1112,4509.9,4509.1,0.1112]
[1755269430385,4.098,4509.8,4509.5,2.21753672]
[1755269430541,4.0,4511.2,4509.6,0.9793]
[1755269430734,4.0,4511.2,4509.6,0.1112]
[1755269430735,0.1112,4510.2,4509.6,0.1112]
[1755269430963,0.1112,4509.9,4509.3,0.1112]
[1755269431162,4.093,4510.1,4510.0,2.2172949]
[1755269431375,4.092,4510.3,4510.1,2.21719816]
[1755269431684,4.092,4510.3,4510.2,0.5212]
[1755269431853,2.2172066,4510.2,4509.0,2.21776839]
[1755269432046,4.2032,4510.3,4509.4,0.1112]
[1755269432254,0.1112,4510.3,4510.2,2.21719657]
[1755269432455,0.1112,4510.3,4510.2,3.41821623]
[1755269432868,2.21606996,4512.5,4510.2,3.41821623]
[1755269432869,0.57647999,4512.9,4511.4,2.21659464]
[1755269433076,4.087,4512.7,4511.0,0.5212]
[1755269433273,4.087,4512.7,4511.7,2.21644931]
[1755269433518,2.67339413,4512.6,4511.7,2.21644931]
[1755269433718,0.45733,4512.6,4511.0,0.5212]
[1755269433969,4.083,4512.8,4511.6,0.5212]
[1755269434087,4.083,4512.8,4511.7,0.4581]
[1755269434418,4.083,4512.8,4512.2,2.21620692]
[1755269434708,4.083,4512.8,4511.7,0.4581]
[1755269434910,4.083,4512.8,4512.3,2.21614946]
[1755269435118,0.4083,4512.8,4512.3,0.4581]
[1755269435292,2.21538582,4513.9,4512.4,0.9793]
[1755269435610,4.076,4513.8,4512.4,0.9793]
[1755269435812,4.076,4513.8,4511.4,0.02216606]
[1755269435813,2.2155264,4513.6,4510.5,0.5212]
[1755269436014,0.57647999,4513.0,4510.5,0.5212]
[1755269436177,0.57647999,4513.0,4510.6,0.4581]
[1755269436374,2.21630057,4512.1,4510.6,0.4581]
[1755269436590,4.08,4512.2,4510.7,0.5044]
[1755269436792,2.21618563,4512.3,4511.4,2.21658307]
[1755269437035,6.29392166,4512.8,4511.7,2.21645942]
[1755269437318,4.075,4512.7,4512.0,2.21630483]
[1755269437502,4.075,4512.7,4511.5,2.4381799]
[1755269437681,4.075,4512.7,4511.5,0.22165831]
[1755269437876,4.075,4512.7,4511.4,0.5044]
[1755269438223,0.5201,4512.9,4510.1,3.02217245]
[1755269438406,0.068,4512.9,4511.3,0.9762]
[1755269438715,0.068,4512.9,4511.4,0.9762]
[1755269438904,0.068,4512.9,4512.2,2.21617867]
[1755269439102,0.068,4512.9,4512.0,2.68811137]
[1755269439316,0.068,4512.9,4512.2,2.21619198]
[1755269439482,0.068,4512.9,4512.0,0.79105114]
[1755269439683,0.068,4512.9,4512.0,2.68809187]
[1755269439880,0.068,4512.9,4512.0,0.4718]
[1755269440076,2.21593289,4512.8,4512.0,0.4718]
[1755269440281,0.068,4512.9,4512.0,0.4718]
[1755269440497,0.068,4512.9,4512.3,2.21611569]
[1755269440683,0.068,4512.9,4511.6,2.21650663]
[1755269440684,0.068,4512.9,4510.6,0.5044]
[1755269440881,0.4521,4512.8,4510.6,0.5044]
[1755269441098,2.21623205,4512.2,4511.3,2.2166247]
[1755269441320,2.21626012,4512.2,4511.3,2.2166247]
[1755269441529,0.53085455,4512.9,4511.4,0.02216606]
[1755269441712,0.068,4512.9,4511.5,0.4718]
[1755269441916,0.068,4512.9,4511.6,0.84585028]
[1755269442115,1.1611012,4515.0,4511.8,2.2164103]
[1755269442116,0.002,4515.0,4511.8,2.2164103]
[1755269442304,0.002,4515.0,4513.0,3.0]
[1755269442510,0.002,4515.0,4513.4,2.21562458]
[1755269442705,0.002,4515.0,4513.5,0.52156246]
[1755269442921,0.002,4515.0,4514.9,0.1104]
[1755269443133,4.002,4515.0,4514.9,0.1104]
[1755269443330,0.002,4515.0,4514.9,0.1104]
[1755269443601,0.002,4515.0,4513.7,2.21547732]
[1755269443796,0.002,4515.0,4514.9,2.21488848]
[1755269444146,0.002,4515.0,4514.7,0.1104]
[1755269445036,0.9681,4514.9,4513.3,3.0]
[1755269445215,2.21502912,4514.7,4514.1,0.1104]
[1755269445396,0.1104,4514.8,4514.1,0.1104]
[1755269445909,0.002,4515.0,4514.2,2.21523193]
[1755269446235,0.1104,4514.9,4514.3,0.1104]
[1755269446856,0.4521,4514.9,4513.1,0.11148379]
[1755269447063,0.1104,4514.4,4513.1,2.21577186]
[1755269447340,0.1104,4514.4,4512.9,3.5044]
[1755269447341,0.1104,4514.9,4514.3,0.1104]
[1755269448150,0.002,4515.0,4514.3,0.1104]
[1755269448352,2.2168819,4515.0,4514.3,0.1104]
[1755269448552,0.002,4515.0,4514.3,0.1104]
[1755269448756,2.2149627,4514.8,4513.2,0.57201719]
[1755269449037,0.1104,4514.6,4513.9,0.1104]
[1755269449340,2.21508472,4514.5,4513.9,0.1104]
[1755269449539,2.21509002,4514.5,4513.9,0.1104]
[1755269449834,2.66701623,4514.9,4513.4,2.21560212]
[1755269449835,0.1104,4514.3,4513.6,2.32592465]
[1755269450043,0.1104,4514.3,4513.6,0.1104]
[1755269450412,0.1104,4514.3,4513.6,2.32588662]
[1755269450599,2.2151413,4514.4,4513.5,2.21552906]
[1755269450804,0.1104,4514.5,4513.9,0.1104]
[1755269451026,2.21513818,4514.4,4513.9,0.1104]
[1755269451233,0.1104,4514.5,4513.9,0.1104]
[1755269451437,0.9681,4514.7,4512.9,3.0]
[1755269451636,0.1104,4514.1,4513.4,0.1104]
[1755269452254,0.1104,4514.1,4513.4,0.1112]
[1755269452547,2.21533008,4514.0,4513.4,0.1112]
[1755269452790,0.1104,4514.1,4513.4,0.1112]
[1755269453038,2.21472669,4515.3,4513.4,0.1112]
[1755269453039,0.1124,4515.0,4513.9,0.1104]
[1755269453337,0.002,4515.0,4514.5,2.21503908]
[1755269453535,0.002,4515.0,4514.0,0.9762]
[1755269453536,0.002,4515.0,4514.6,0.13255035]
[1755269453738,0.002,4515.0,4514.6,2.32541649]
[1755269454039,0.002,4515.0,4514.6,0.1104]
[1755269454540,0.002,4515.0,4514.9,0.1104]
[1755269455116,0.002,4515.0,4514.0,0.9762]
[1755269455338,0.002,4515.0,4514.5,0.1104]
[1755269455725,0.1104,4514.7,4514.2,2.21519171]
[1755269455933,0.1104,4514.7,4514.0,0.1104]
[1755269456448,2.2151752,4514.4,4514.0,0.1104]
[1755269456612,0.1104,4514.6,4514.0,0.1104]
[1755269456937,2.21513604,4514.4,4514.0,0.1104]
[1755269457140,0.4521,4514.3,4513.4,0.0008]
[1755269457302,0.5625,4514.3,4513.6,0.1104]
[1755269457503,2.21538711,4513.9,4513.4,0.0008]
[1755269457859,0.1104,4513.8,4513.4,0.0008]
[1755269458062,2.21684104,4515.0,4513.4,0.0008]
[1755269458063,2.21514539,4514.4,4513.6,2.21548053]
[1755269458231,2.32559671,4514.3,4513.6,2.32588053]
[1755269458571,2.32559671,4514.3,4513.6,0.1104]
[1755269458930,2.32559671,4514.3,4513.6,2.32592334]
[1755269459160,2.2152372,4514.2,4513.6,0.1104]
[1755269459364,0.68197114,4514.2,4513.4,0.0008]
[1755269459667,2.32583801,4513.8,4513.4,0.0008]
[1755269459877,0.1104,4513.8,4513.4,0.0008]
[1755269460071,0.4521,4513.7,4513.4,0.0008]
[1755269460276,0.1104,4513.8,4513.4,0.0008]
[1755269460490,0.1104,4514.3,4513.5,0.9762]
[1755269460694,0.0012,4515.0,4514.9,2.21488848]
[1755269460979,0.0012,4515.0,4513.6,4.9872]
[1755269461186,0.0012,4515.0,4514.9,2.21488848]
[1755269461390,0.0012,4515.0,4514.9,2.23703736]
[1755269461538,0.0012,4515.0,4514.9,2.21488848]
[1755269461738,0.0012,4515.0,4514.6,2.21500391]
[1755269461970,0.0012,4515.0,4514.6,0.44301494]
[1755269462161,0.0012,4515.0,4514.6,2.21502422]
[1755269462359,0.26407498,4516.0,4513.7,3.0]
[1755269462561,0.002,4515.9,4514.7,0.4718]
[1755269463036,2.21454039,4515.7,4514.7,2.68674556]
[1755269463234,2.21445793,4515.8,4514.7,0.4718]
[1755269463447,0.002,4515.9,4514.7,0.4718]
[1755269464100,2.21444705,4515.8,4514.7,3.00589533]
[1755269464276,0.002,4515.9,4514.8,2.2149134]
[1755269464443,0.002,4515.9,4514.7,0.79091885]
[1755269464636,0.002,4515.9,4515.1,2.21478746]
[1755269464841,2.21444831,4515.8,4514.9,2.21484225]
[1755269465075,0.002,4515.4,4514.7,0.4718]
[1755269465264,0.002,4515.4,4515.1,2.21478848]
[1755269465468,0.002,4515.4,4515.3,2.21469226]
[1755269465671,0.002,4515.4,4515.3,2.43616149]
[1755269465873,0.002,4515.4,4514.6,0.4718]
[1755269466173,2.21469226,4515.3,4513.6,0.4552]
[1755269466370,0.3591,4515.4,4513.9,2.21537505]
[1755269466682,0.002,4515.4,4514.1,2.215281]
[1755269466883,2.21488572,4515.0,4514.0,3.16638952]
[1755269467183,2.21502297,4514.7,4514.0,1.48928265]
[1755269467372,2.21502297,4514.7,4514.0,0.9511]
[1755269467569,2.21502297,4514.7,4514.0,3.1664264]
[1755269467888,2.21494877,4514.8,4514.0,3.1664264]
[1755269468098,0.002,4515.4,4514.0,0.9511]
[1755269468409,2.21469226,4515.3,4514.3,2.21515905]
[1755269468701,0.002,4515.4,4514.4,2.48215416]
[1755269468702,2.21477794,4515.2,4514.4,2.48215416]
[1755269468888,2.21469226,4515.3,4514.4,2.48216416]
[1755269469073,0.002,4515.4,4514.4,0.26703591]
[1755269469259,0.002,4515.4,4513.5,4.3304839]
[1755269469464,2.21499279,4514.7,4513.7,5.21547732]
[1755269469796,0.002,4515.4,4513.6,0.4552]
[1755269469960,2.21500208,4514.7,4513.7,3.0]
[1755269470389,2.21493397,4514.9,4513.7,3.0]
[1755269470600,4.009,4515.3,4513.7,3.0]
[1755269470800,2.21504594,4514.6,4514.1,0.1104]
[1755269471294,0.1104,4514.7,4514.1,2.32567205]
[1755269471619,0.1104,4515.2,4514.0,0.9511]
[1755269471806,0.1104,4515.2,4514.5,0.1104]
[1755269472014,2.21479037,4515.1,4514.5,0.1104]
[1755269472319,2.21483942,4515.0,4514.5,0.1104]
[1755269472490,0.1104,4515.2,4514.5,0.1104]
[1755269472692,0.002,4515.4,4514.6,1.18365757]
[1755269472919,0.002,4515.4,4515.3,0.1104]
[1755269473786,0.002,4515.4,4515.3,2.32509226]
[1755269474315,0.002,4515.4,4515.3,0.1104]
[1755269474490,0.002,4515.4,4515.3,2.32509226]
[1755269475736,0.002,4515.4,4515.3,2.82099226]
[1755269475935,0.002,4515.4,4515.3,3.77976946]
[1755269476346,0.002,4515.9,4515.4,2.21464322]
[1755269476545,1e-08,4516.1,4515.5,0.02214594]
[1755269476704,0.002,4517.9,4515.6,0.97324545]
[1755269476904,0.002,4517.9,4517.8,2.21346673]
[1755269477136,0.002,4517.9,4517.8,2.32386673]
[1755269477439,0.002,4517.9,4517.8,3.27496673]
[1755269478198,0.002,4517.9,4517.8,7.5791814]
[1755269478403,0.002,4517.9,4517.8,7.41411739]
[1755269478825,0.002,4517.9,4517.8,9.21946673]
[1755269479033,0.002,4517.9,4517.8,5.21346673]
[1755269479414,0.002,4517.9,4517.1,0.4552]
[1755269479616,0.002,4517.9,4517.3,4.006]
[1755269479819,0.002,4517.9,4517.0,3.0]
[1755269480357,0.002,4517.9,4517.6,2.21351742]
[1755269480506,0.002,4517.9,4517.0,0.7006]
[1755269480707,0.002,4517.9,4517.2,2.21376073]
[1755269480906,0.002,4517.9,4516.9,3.0]
[1755269481135,0.3571,4517.8,4516.0,0.4959]
[1755269481841,0.4655,4517.7,4515.3,0.5035772]
[1755269482053,2.21391453,4516.9,4516.1,2.21429608]
[1755269482207,0.4456,4517.1,4516.1,0.44287424]